[Event "Titled Tuesday Blitz December 20 Late 2022"]
[White "Dimitrov, Atanas"]
[Black "Caruana, Fabiano"]
[WhiteFideId "2901315"]
[BlackFideId "2020009"]
[WhiteElo "2623"]
[BlackElo "2847"]
[Result "0-1"]
[Round "02"]
[TimeControl "180+1"]
[Date "2022.12.20"]
[WhiteClock "0:00:08"]
[BlackClock "0:01:12"]

1. e4 {[%clk 0:03:00]}  c6 {[%clk 0:02:58]} 2. d4 {[%clk 0:02:59]}  d5 {[%clk 0:02:59]} 3. Nd2 {[%clk 0:02:59]}  dxe4 {[%clk 0:02:59]} 4. Nxe4 {[%clk 0:03:00]}  Nf6 {[%clk 0:02:59]} 5. Nxf6+ {[%clk 0:02:58]}  exf6 {[%clk 0:03:00]} 6. Nf3 {[%clk 0:02:58]}  Bd6 {[%clk 0:02:59]} 7. Bd3 {[%clk 0:02:58]}  O-O {[%clk 0:02:59]} 8. O-O {[%clk 0:02:58]}  Bg4 {[%clk 0:02:59]} 9. Re1 {[%clk 0:02:57]}  Nd7 {[%clk 0:02:58]} 10. c4 {[%clk 0:02:55]}  Qc7 {[%clk 0:02:54]} 11. h3 {[%clk 0:02:54]}  Bh5 {[%clk 0:02:54]} 12. Bd2 {[%clk 0:02:51]}  Rfe8 {[%clk 0:02:53]} 13. Re3 {[%clk 0:02:39]}  Rxe3 {[%clk 0:02:41]} 14. Bxe3 {[%clk 0:02:40]}  Re8 {[%clk 0:02:40]} 15. Be2 {[%clk 0:02:36]}  Bf4 {[%clk 0:02:32]} 16. Qd2 {[%clk 0:02:04]}  Bxe3 {[%clk 0:02:31]} 17. fxe3 {[%clk 0:02:05]}  c5 {[%clk 0:02:15]} 18. b3 {[%clk 0:01:57]}  b6 {[%clk 0:02:05]} 19. Re1 {[%clk 0:01:50]}  Nf8 {[%clk 0:02:01]} 20. Bd1 {[%clk 0:01:43]}  Bg6 {[%clk 0:01:55]} 21. d5 {[%clk 0:01:40]}  Be4 {[%clk 0:01:53]} 22. Qf2 {[%clk 0:01:35]}  Bxf3 {[%clk 0:01:50]} 23. Bxf3 {[%clk 0:01:30]}  Ng6 {[%clk 0:01:50]} 24. Rd1 {[%clk 0:01:29]}  Qd6 {[%clk 0:01:50]} 25. a4 {[%clk 0:01:27]}  Ne5 {[%clk 0:01:50]} 26. Be2 {[%clk 0:01:16]}  g6 {[%clk 0:01:50]} 27. Bf1 {[%clk 0:01:15]}  f5 {[%clk 0:01:45]} 28. a5 {[%clk 0:01:13]}  Nd7 {[%clk 0:01:43]} 29. Ra1 {[%clk 0:01:10]}  Nf6 {[%clk 0:01:42]} 30. axb6 {[%clk 0:01:07]}  axb6 {[%clk 0:01:43]} 31. Bd3 {[%clk 0:01:06]}  Qe5 {[%clk 0:01:35]} 32. Ra6 {[%clk 0:00:59]}  Qc3 {[%clk 0:01:34]} 33. Qc2 {[%clk 0:00:31]}  Qe1+ {[%clk 0:01:33]} 34. Bf1 {[%clk 0:00:29]}  Ne4 {[%clk 0:01:13]} 35. Qe2 {[%clk 0:00:22]}  Qc1 {[%clk 0:01:13]} 36. Rxb6 {[%clk 0:00:19]}  Ng3 {[%clk 0:01:13]} 37. Qf2 {[%clk 0:00:19]}  Rxe3 {[%clk 0:01:13]} 38. Qf4 {[%clk 0:00:08]}  Ne2+ {[%clk 0:01:12]} 0-1


[Site "https://www.chess.com"]

[Event "Titled Tuesday Blitz December 20 Late 2022"]
[White "Donchenko, Alexander"]
[Black "Tologon tegin, Semetei"]
[WhiteFideId "24603295"]
[BlackFideId "13800574"]
[WhiteElo "2581"]
[BlackElo "2264"]
[Result "1-0"]
[Round "02"]
[TimeControl "180+1"]
[Date "2022.12.20"]
[WhiteClock "0:00:29"]
[BlackClock "0:00:01"]

1. Nf3 {[%clk 0:03:00]}  Nf6 {[%clk 0:02:56]} 2. g3 {[%clk 0:03:01]}  b6 {[%clk 0:02:55]} 3. Bg2 {[%clk 0:03:01]}  Bb7 {[%clk 0:02:56]} 4. O-O {[%clk 0:03:02]}  g6 {[%clk 0:02:56]} 5. d4 {[%clk 0:03:01]}  Bg7 {[%clk 0:02:55]} 6. c4 {[%clk 0:02:58]}  O-O {[%clk 0:02:56]} 7. d5 {[%clk 0:02:59]}  c6 {[%clk 0:02:48]} 8. Nc3 {[%clk 0:02:58]}  cxd5 {[%clk 0:02:48]} 9. cxd5 {[%clk 0:02:59]}  e6 {[%clk 0:02:41]} 10. e4 {[%clk 0:02:56]}  exd5 {[%clk 0:02:39]} 11. exd5 {[%clk 0:02:54]}  Na6 {[%clk 0:02:29]} 12. Bf4 {[%clk 0:02:53]}  Re8 {[%clk 0:02:22]} 13. Nd4 {[%clk 0:02:52]}  Nh5 {[%clk 0:01:50]} 14. Be3 {[%clk 0:02:45]}  f5 {[%clk 0:01:42]} 15. Nxf5 {[%clk 0:02:43]}  gxf5 {[%clk 0:01:34]} 16. Qxh5 {[%clk 0:02:42]}  Qf6 {[%clk 0:01:34]} 17. Bh3 {[%clk 0:02:34]}  Rf8 {[%clk 0:01:26]} 18. Rad1 {[%clk 0:02:26]}  Nc5 {[%clk 0:01:19]} 19. Bd4 {[%clk 0:02:20]}  Qg6 {[%clk 0:01:17]} 20. Qh4 {[%clk 0:02:15]}  Rae8 {[%clk 0:01:06]} 21. b4 {[%clk 0:02:09]}  Ne4 {[%clk 0:01:04]} 22. Bxg7 {[%clk 0:02:06]}  Qxg7 {[%clk 0:01:03]} 23. Nxe4 {[%clk 0:02:06]}  Rxe4 {[%clk 0:01:03]} 24. Qh5 {[%clk 0:02:05]}  Re5 {[%clk 0:00:55]} 25. Rfe1 {[%clk 0:01:41]}  Rxe1+ {[%clk 0:00:47]} 26. Rxe1 {[%clk 0:01:41]}  f4 {[%clk 0:00:43]} 27. Re5 {[%clk 0:01:36]}  Kh8 {[%clk 0:00:38]} 28. Bf1 {[%clk 0:01:18]}  fxg3 {[%clk 0:00:37]} 29. hxg3 {[%clk 0:01:18]}  d6 {[%clk 0:00:34]} 30. Re8 {[%clk 0:01:15]}  Qg8 {[%clk 0:00:19]} 31. Rxf8 {[%clk 0:01:13]}  Qxf8 {[%clk 0:00:19]} 32. Bd3 {[%clk 0:01:11]}  Qe7 {[%clk 0:00:19]} 33. a3 {[%clk 0:01:04]}  Bc8 {[%clk 0:00:17]} 34. Qh6 {[%clk 0:00:58]}  Bd7 {[%clk 0:00:16]} 35. Kg2 {[%clk 0:00:51]}  Bg4 {[%clk 0:00:14]} 36. Qf4 {[%clk 0:00:45]}  Bd7 {[%clk 0:00:12]} 37. Qd4+ {[%clk 0:00:40]}  Kg8 {[%clk 0:00:11]} 38. Qc3 {[%clk 0:00:36]}  Qd8 {[%clk 0:00:10]} 39. Qc2 {[%clk 0:00:34]}  Qg5 {[%clk 0:00:03]} 40. Bxh7+ {[%clk 0:00:33]}  Kg7 {[%clk 0:00:03]} 41. Be4 {[%clk 0:00:34]}  Qh5 {[%clk 0:00:03]} 42. Qc7 {[%clk 0:00:32]}  Qh3+ {[%clk 0:00:02]} 43. Kg1 {[%clk 0:00:32]}  Qg4 {[%clk 0:00:01]} 44. Qxd6 {[%clk 0:00:31]}  Kg8 {[%clk 0:00:01]} 45. Qe7 {[%clk 0:00:29]} 1-0


[Site "https://www.chess.com"]

[Event "Titled Tuesday Blitz December 20 Late 2022"]
[White "Dudzinski, Pawel"]
[Black "Antonio, Jorge Carlos"]
[WhiteFideId "1117890"]
[BlackFideId "113190"]
[WhiteElo "2099"]
[BlackElo "2247"]
[Result "1-0"]
[Round "02"]
[TimeControl "180+1"]
[Date "2022.12.21"]
[WhiteClock "0:00:07"]
[BlackClock "0:00:37"]

1. e4 {[%clk 0:03:00]}  c5 {[%clk 0:02:59]} 2. Nc3 {[%clk 0:03:00]}  e6 {[%clk 0:02:56]} 3. Nge2 {[%clk 0:02:58]}  Nc6 {[%clk 0:02:57]} 4. g3 {[%clk 0:02:58]}  Nf6 {[%clk 0:02:51]} 5. Bg2 {[%clk 0:02:57]}  a6 {[%clk 0:02:51]} 6. d4 {[%clk 0:02:53]}  cxd4 {[%clk 0:02:49]} 7. Nxd4 {[%clk 0:02:54]}  Qc7 {[%clk 0:02:45]} 8. Nb3 {[%clk 0:02:43]}  d6 {[%clk 0:02:42]} 9. O-O {[%clk 0:02:43]}  Be7 {[%clk 0:02:42]} 10. Bf4 {[%clk 0:02:41]}  O-O {[%clk 0:02:39]} 11. Qd2 {[%clk 0:02:40]}  b5 {[%clk 0:02:24]} 12. a3 {[%clk 0:02:38]}  Ne5 {[%clk 0:02:20]} 13. Qe2 {[%clk 0:02:26]}  Bb7 {[%clk 0:02:15]} 14. Rad1 {[%clk 0:02:16]}  Nc4 {[%clk 0:02:10]} 15. Bc1 {[%clk 0:02:16]}  Nxa3 {[%clk 0:02:04]} 16. bxa3 {[%clk 0:01:45]}  Qxc3 {[%clk 0:02:03]} 17. Rd3 {[%clk 0:01:45]}  Qc7 {[%clk 0:01:57]} 18. Rfd1 {[%clk 0:01:41]}  Rac8 {[%clk 0:01:53]} 19. Bd2 {[%clk 0:01:12]}  h6 {[%clk 0:01:48]} 20. Rc3 {[%clk 0:01:02]}  Qb6 {[%clk 0:01:42]} 21. Be3 {[%clk 0:00:59]}  Qd8 {[%clk 0:01:36]} 22. e5 {[%clk 0:00:45]}  Nd5 {[%clk 0:01:30]} 23. Bxd5 {[%clk 0:00:43]}  Bxd5 {[%clk 0:01:25]} 24. Rxc8 {[%clk 0:00:41]}  Qxc8 {[%clk 0:01:25]} 25. exd6 {[%clk 0:00:41]}  Bxd6 {[%clk 0:01:21]} 26. Qg4 {[%clk 0:00:16]}  f5 {[%clk 0:01:13]} 27. Qg6 {[%clk 0:00:15]}  Qe8 {[%clk 0:01:11]} 28. Qxe8 {[%clk 0:00:10]}  Rxe8 {[%clk 0:01:11]} 29. Nc5 {[%clk 0:00:07]}  Rc8 {[%clk 0:01:04]} 30. Nxa6 {[%clk 0:00:06]}  Rxc2 {[%clk 0:01:03]} 31. Nb4 {[%clk 0:00:06]}  Rb2 {[%clk 0:01:00]} 32. Nxd5 {[%clk 0:00:05]}  exd5 {[%clk 0:01:00]} 33. Rxd5 {[%clk 0:00:05]}  Bxa3 {[%clk 0:01:00]} 34. Rxf5 {[%clk 0:00:06]}  Rb1+ {[%clk 0:00:57]} 35. Kg2 {[%clk 0:00:06]}  b4 {[%clk 0:00:57]} 36. Ra5 {[%clk 0:00:05]}  Ra1 {[%clk 0:00:55]} 37. Bd4 {[%clk 0:00:04]}  Ra2 {[%clk 0:00:53]} 38. Ra8+ {[%clk 0:00:04]}  Kf7 {[%clk 0:00:53]} 39. Ra7+ {[%clk 0:00:04]}  Ke6 {[%clk 0:00:52]} 40. Bxg7 {[%clk 0:00:05]}  b3 {[%clk 0:00:51]} 41. Rb7 {[%clk 0:00:02]}  Kd6 {[%clk 0:00:49]} 42. Bxh6 {[%clk 0:00:02]}  Kc6 {[%clk 0:00:49]} 43. Rb8 {[%clk 0:00:03]}  Kc5 {[%clk 0:00:49]} 44. Bg7 {[%clk 0:00:03]}  Kc4 {[%clk 0:00:48]} 45. h4 {[%clk 0:00:04]}  Bb4 {[%clk 0:00:48]} 46. h5 {[%clk 0:00:04]}  b2 {[%clk 0:00:48]} 47. Bxb2 {[%clk 0:00:03]}  Rxb2 {[%clk 0:00:48]} 48. h6 {[%clk 0:00:03]}  Ra2 {[%clk 0:00:45]} 49. h7 {[%clk 0:00:03]}  Bc3 {[%clk 0:00:43]} 50. h8=Q {[%clk 0:00:03]}  Bxh8 {[%clk 0:00:42]} 51. Rxh8 {[%clk 0:00:04]}  Kd4 {[%clk 0:00:41]} 52. Re8 {[%clk 0:00:05]}  Kd5 {[%clk 0:00:41]} 53. Re3 {[%clk 0:00:05]}  Kd6 {[%clk 0:00:42]} 54. g4 {[%clk 0:00:06]}  Kd5 {[%clk 0:00:43]} 55. Kg3 {[%clk 0:00:06]}  Kd4 {[%clk 0:00:44]} 56. g5 {[%clk 0:00:06]}  Ra6 {[%clk 0:00:44]} 57. Kg4 {[%clk 0:00:07]}  Ra1 {[%clk 0:00:43]} 58. Rg3 {[%clk 0:00:06]}  Ra6 {[%clk 0:00:42]} 59. f4 {[%clk 0:00:07]}  Ke4 {[%clk 0:00:42]} 60. Rg1 {[%clk 0:00:07]}  Ra7 {[%clk 0:00:38]} 61. Re1+ {[%clk 0:00:07]}  Kd5 {[%clk 0:00:38]} 62. g6 {[%clk 0:00:07]}  Rg7 {[%clk 0:00:37]} 63. Kg5 {[%clk 0:00:08]}  Ra7 {[%clk 0:00:37]} 64. f5 {[%clk 0:00:08]}  Ra2 {[%clk 0:00:37]} 65. g7 {[%clk 0:00:08]}  Rg2+ {[%clk 0:00:37]} 66. Kf6 {[%clk 0:00:08]}  Kd4 {[%clk 0:00:36]} 67. Kf7 {[%clk 0:00:09]}  Kd3 {[%clk 0:00:36]} 68. g8=Q {[%clk 0:00:09]}  Kd2 {[%clk 0:00:37]} 69. Qxg2+ {[%clk 0:00:07]} 1-0


[Site "https://www.chess.com"]

[Event "Titled Tuesday Blitz December 20 Late 2022"]
[White "Dzierzak, Radoslaw"]
[Black "Curtis, John"]
[WhiteFideId "1161407"]
[BlackFideId "3200256"]
[WhiteElo "2111"]
[BlackElo "2203"]
[Result "0-1"]
[Round "02"]
[TimeControl "180+1"]
[Date "2022.12.21"]
[WhiteClock "0:00:04"]
[BlackClock "0:00:35"]

1. e4 {[%clk 0:03:00]}  e5 {[%clk 0:02:51]} 2. Nf3 {[%clk 0:03:01]}  Nc6 {[%clk 0:02:51]} 3. Bc4 {[%clk 0:03:01]}  Nf6 {[%clk 0:02:50]} 4. d3 {[%clk 0:03:00]}  Be7 {[%clk 0:02:50]} 5. O-O {[%clk 0:03:01]}  O-O {[%clk 0:02:50]} 6. a4 {[%clk 0:03:01]}  d6 {[%clk 0:02:50]} 7. Re1 {[%clk 0:02:59]}  Be6 {[%clk 0:02:50]} 8. Nbd2 {[%clk 0:02:56]}  Bxc4 {[%clk 0:02:50]} 9. Nxc4 {[%clk 0:02:56]}  Nd7 {[%clk 0:02:50]} 10. a5 {[%clk 0:02:53]}  a6 {[%clk 0:02:50]} 11. c3 {[%clk 0:02:49]}  Rb8 {[%clk 0:02:47]} 12. b4 {[%clk 0:02:45]}  Kh8 {[%clk 0:02:44]} 13. d4 {[%clk 0:02:39]}  exd4 {[%clk 0:02:38]} 14. Nxd4 {[%clk 0:02:40]}  Nxd4 {[%clk 0:02:28]} 15. cxd4 {[%clk 0:02:37]}  d5 {[%clk 0:02:27]} 16. exd5 {[%clk 0:02:36]}  Bxb4 {[%clk 0:02:27]} 17. Re3 {[%clk 0:02:23]}  Nf6 {[%clk 0:02:27]} 18. Rh3 {[%clk 0:02:19]}  Qxd5 {[%clk 0:02:23]} 19. Ne3 {[%clk 0:02:18]}  Qe4 {[%clk 0:02:16]} 20. f3 {[%clk 0:02:02]}  Qe6 {[%clk 0:02:10]} 21. Rb1 {[%clk 0:01:49]}  Bxa5 {[%clk 0:02:04]} 22. Qd3 {[%clk 0:01:24]}  Bb6 {[%clk 0:01:47]} 23. Bb2 {[%clk 0:01:04]}  Rfe8 {[%clk 0:01:40]} 24. Re1 {[%clk 0:01:04]}  h6 {[%clk 0:01:29]} 25. g4 {[%clk 0:01:03]}  Rbd8 {[%clk 0:01:25]} 26. Kg2 {[%clk 0:00:57]}  Nd5 {[%clk 0:01:22]} 27. Nxd5 {[%clk 0:00:36]}  Qxe1 {[%clk 0:01:21]} 28. Nf4 {[%clk 0:00:27]}  Qe3 {[%clk 0:01:07]} 29. Qf5 {[%clk 0:00:21]}  Qd2+ {[%clk 0:01:01]} 30. Kg3 {[%clk 0:00:19]}  Bxd4 {[%clk 0:00:59]} 31. Bxd4 {[%clk 0:00:14]}  Rxd4 {[%clk 0:00:59]} 32. Rxh6+ {[%clk 0:00:14]}  gxh6 {[%clk 0:00:56]} 33. Qf6+ {[%clk 0:00:14]}  Kg8 {[%clk 0:00:56]} 34. Nh5 {[%clk 0:00:15]}  Qe1+ {[%clk 0:00:56]} 35. Kh3 {[%clk 0:00:14]}  Qe5 {[%clk 0:00:42]} 36. Qxh6 {[%clk 0:00:12]}  Re6 {[%clk 0:00:40]} 37. Qc1 {[%clk 0:00:04]}  Rd3 {[%clk 0:00:35]} 0-1


[Site "https://www.chess.com"]

[Event "Titled Tuesday Blitz December 20 Late 2022"]
[White "Ehlvest, Jaan"]
[Black "Shimanov, Aleksandr"]
[WhiteFideId "4500016"]
[BlackFideId "4198603"]
[WhiteElo "2430"]
[BlackElo "2605"]
[Result "0-1"]
[Round "02"]
[TimeControl "180+1"]
[Date "2022.12.20"]
[WhiteClock "0:02:13"]
[BlackClock "0:02:30"]

1. e4 {[%clk 0:02:56]}  c6 {[%clk 0:03:00]} 2. b3 {[%clk 0:02:49]}  d5 {[%clk 0:03:01]} 3. Bb2 {[%clk 0:02:48]}  dxe4 {[%clk 0:02:56]} 4. Nc3 {[%clk 0:02:48]}  Nf6 {[%clk 0:02:56]} 5. Qe2 {[%clk 0:02:48]}  Bf5 {[%clk 0:02:55]} 6. O-O-O {[%clk 0:02:46]}  e6 {[%clk 0:02:51]} 7. h3 {[%clk 0:02:46]}  Qa5 {[%clk 0:02:32]} 8. g4 {[%clk 0:02:42]}  Bg6 {[%clk 0:02:32]} 9. Bg2 {[%clk 0:02:36]}  Ba3 {[%clk 0:02:31]} 10. Nxe4 {[%clk 0:02:14]}  Bxb2+ {[%clk 0:02:29]} 11. Kxb2 {[%clk 0:02:13]}  Bxe4 {[%clk 0:02:30]} 0-1


[Site "https://www.chess.com"]

[Event "Titled Tuesday Blitz December 20 Late 2022"]
[White "Fernandez De La Vara, Arnaldo"]
[Black "Nakamura, Hikaru"]
[WhiteFideId "3518388"]
[BlackFideId "2016192"]
[WhiteElo "2387"]
[BlackElo "2909"]
[Result "0-1"]
[Round "02"]
[TimeControl "180+1"]
[Date "2022.12.20"]
[WhiteClock "0:00:02"]
[BlackClock "0:01:28"]

1. Nf3 {[%clk 0:03:00]}  d5 {[%clk 0:02:57]} 2. g3 {[%clk 0:03:01]}  g6 {[%clk 0:02:55]} 3. Bg2 {[%clk 0:03:01]}  Bg7 {[%clk 0:02:55]} 4. O-O {[%clk 0:03:00]}  e5 {[%clk 0:02:55]} 5. c4 {[%clk 0:02:56]}  dxc4 {[%clk 0:02:51]} 6. Qa4+ {[%clk 0:02:52]}  Nc6 {[%clk 0:02:51]} 7. Qxc4 {[%clk 0:02:49]}  Nge7 {[%clk 0:02:50]} 8. Nc3 {[%clk 0:02:47]}  Be6 {[%clk 0:02:50]} 9. Qa4 {[%clk 0:02:44]}  h6 {[%clk 0:02:49]} 10. d3 {[%clk 0:02:41]}  O-O {[%clk 0:02:49]} 11. Be3 {[%clk 0:02:34]}  Nd4 {[%clk 0:02:40]} 12. Rfc1 {[%clk 0:02:26]}  c6 {[%clk 0:02:35]} 13. b4 {[%clk 0:02:01]}  a6 {[%clk 0:02:26]} 14. Rab1 {[%clk 0:01:42]}  Nd5 {[%clk 0:02:19]} 15. Bxd4 {[%clk 0:01:36]}  exd4 {[%clk 0:02:19]} 16. Nxd5 {[%clk 0:01:32]}  Bxd5 {[%clk 0:02:19]} 17. Nd2 {[%clk 0:01:25]}  Bxg2 {[%clk 0:02:17]} 18. Kxg2 {[%clk 0:01:26]}  Re8 {[%clk 0:02:17]} 19. Qd1 {[%clk 0:01:07]}  Qd5+ {[%clk 0:02:17]} 20. Kg1 {[%clk 0:01:08]}  Re6 {[%clk 0:02:12]} 21. Nb3 {[%clk 0:00:55]}  Rae8 {[%clk 0:02:11]} 22. Rc2 {[%clk 0:00:53]}  h5 {[%clk 0:02:11]} 23. Qf1 {[%clk 0:00:40]}  h4 {[%clk 0:02:06]} 24. a4 {[%clk 0:00:33]}  h3 {[%clk 0:02:00]} 25. Rbb2 {[%clk 0:00:27]}  Bf8 {[%clk 0:01:49]} 26. Nc5 {[%clk 0:00:25]}  Bxc5 {[%clk 0:01:45]} 27. bxc5 {[%clk 0:00:24]}  Qh5 {[%clk 0:01:42]} 28. f3 {[%clk 0:00:22]}  R8e7 {[%clk 0:01:41]} 29. Qf2 {[%clk 0:00:17]}  Re3 {[%clk 0:01:41]} 30. Rb4 {[%clk 0:00:10]}  Qe5 {[%clk 0:01:38]} 31. Kf1 {[%clk 0:00:10]}  a5 {[%clk 0:01:37]} 32. Rbb2 {[%clk 0:00:07]}  f5 {[%clk 0:01:34]} 33. Ke1 {[%clk 0:00:07]}  Rxd3 {[%clk 0:01:33]} 34. Rc4 {[%clk 0:00:05]}  Re3 {[%clk 0:01:28]} 35. Rd2 {[%clk 0:00:02]}  d3 {[%clk 0:01:28]} 0-1


[Site "https://www.chess.com"]

[Event "Titled Tuesday Blitz December 20 Late 2022"]
[White "Fieberg, Samuel"]
[Black "Tristan, Leonardo"]
[WhiteFideId "12901717"]
[BlackFideId "113816"]
[WhiteElo "2398"]
[BlackElo "2461"]
[Result "1-0"]
[Round "02"]
[TimeControl "180+1"]
[Date "2022.12.21"]
[WhiteClock "0:00:33"]
[BlackClock "0:00:17"]

1. d4 {[%clk 0:03:00]}  d5 {[%clk 0:02:59]} 2. Bg5 {[%clk 0:03:00]}  f6 {[%clk 0:02:58]} 3. Bd2 {[%clk 0:03:00]}  c5 {[%clk 0:02:56]} 4. e3 {[%clk 0:02:56]}  Nc6 {[%clk 0:02:54]} 5. Nf3 {[%clk 0:02:56]}  e6 {[%clk 0:02:48]} 6. c4 {[%clk 0:02:54]}  cxd4 {[%clk 0:02:45]} 7. exd4 {[%clk 0:02:46]}  Nge7 {[%clk 0:02:41]} 8. Nc3 {[%clk 0:02:45]}  a6 {[%clk 0:02:27]} 9. cxd5 {[%clk 0:02:42]}  Nxd5 {[%clk 0:02:27]} 10. Nxd5 {[%clk 0:02:42]}  Qxd5 {[%clk 0:02:27]} 11. Rc1 {[%clk 0:02:42]}  Bd6 {[%clk 0:02:18]} 12. Bc4 {[%clk 0:02:42]}  Qe4+ {[%clk 0:02:19]} 13. Be3 {[%clk 0:02:42]}  Bb4+ {[%clk 0:02:17]} 14. Kf1 {[%clk 0:02:41]}  O-O {[%clk 0:02:13]} 15. a3 {[%clk 0:02:38]}  Be7 {[%clk 0:02:12]} 16. d5 {[%clk 0:02:33]}  Rd8 {[%clk 0:02:10]} 17. Nd2 {[%clk 0:02:25]}  Qe5 {[%clk 0:01:47]} 18. dxc6 {[%clk 0:02:23]}  Qxb2 {[%clk 0:01:46]} 19. cxb7 {[%clk 0:02:12]}  Qxb7 {[%clk 0:01:42]} 20. Qb3 {[%clk 0:02:06]}  Qxb3 {[%clk 0:01:39]} 21. Nxb3 {[%clk 0:02:07]}  Bxa3 {[%clk 0:01:39]} 22. Ra1 {[%clk 0:02:07]}  Bb4 {[%clk 0:01:37]} 23. Ke2 {[%clk 0:02:07]}  a5 {[%clk 0:01:37]} 24. Bb6 {[%clk 0:02:02]}  Rd6 {[%clk 0:01:15]} 25. Bxa5 {[%clk 0:01:59]}  Bxa5 {[%clk 0:01:16]} 26. Rxa5 {[%clk 0:01:55]}  Rb8 {[%clk 0:01:16]} 27. Rha1 {[%clk 0:01:50]}  Rb4 {[%clk 0:01:16]} 28. R1a4 {[%clk 0:01:41]}  Rxa4 {[%clk 0:01:13]} 29. Rxa4 {[%clk 0:01:42]}  Bb7 {[%clk 0:01:14]} 30. Nc5 {[%clk 0:01:39]}  Bxg2 {[%clk 0:01:11]} 31. Nxe6 {[%clk 0:01:21]}  Bd5 {[%clk 0:01:11]} 32. Bxd5 {[%clk 0:01:14]}  Rxd5 {[%clk 0:01:12]} 33. Nf4 {[%clk 0:01:14]}  Re5+ {[%clk 0:01:08]} 34. Kf3 {[%clk 0:01:14]}  Rf5 {[%clk 0:01:04]} 35. Ke4 {[%clk 0:01:12]}  Re5+ {[%clk 0:01:05]} 36. Kd4 {[%clk 0:01:12]}  Rf5 {[%clk 0:01:05]} 37. Ke3 {[%clk 0:01:08]}  Re5+ {[%clk 0:01:05]} 38. Re4 {[%clk 0:01:09]}  Ra5 {[%clk 0:01:01]} 39. Nd3 {[%clk 0:01:07]}  Rh5 {[%clk 0:01:00]} 40. h4 {[%clk 0:01:05]}  Kf7 {[%clk 0:01:00]} 41. Kf3 {[%clk 0:01:03]}  Rf5+ {[%clk 0:00:58]} 42. Kg3 {[%clk 0:01:01]}  Rd5 {[%clk 0:00:57]} 43. Re3 {[%clk 0:01:01]}  h5 {[%clk 0:00:55]} 44. Nf4 {[%clk 0:01:01]}  Rf5 {[%clk 0:00:55]} 45. Rd3 {[%clk 0:01:01]}  Re5 {[%clk 0:00:48]} 46. Rd5 {[%clk 0:01:00]}  Rxd5 {[%clk 0:00:43]} 47. Nxd5 {[%clk 0:01:01]}  g5 {[%clk 0:00:44]} 48. Ne3 {[%clk 0:00:59]}  Ke6 {[%clk 0:00:43]} 49. Nc2 {[%clk 0:00:53]}  Ke5 {[%clk 0:00:42]} 50. Ne1 {[%clk 0:00:50]}  Ke4 {[%clk 0:00:41]} 51. Ng2 {[%clk 0:00:42]}  Kd3 {[%clk 0:00:26]} 52. f4 {[%clk 0:00:42]}  g4 {[%clk 0:00:13]} 53. f5 {[%clk 0:00:36]}  Ke4 {[%clk 0:00:13]} 54. Nf4 {[%clk 0:00:37]}  Kxf5 {[%clk 0:00:13]} 55. Nxh5 {[%clk 0:00:37]}  Kg6 {[%clk 0:00:11]} 56. Nf4+ {[%clk 0:00:37]}  Kf5 {[%clk 0:00:11]} 57. Ng2 {[%clk 0:00:37]}  Kg6 {[%clk 0:00:06]} 58. Kxg4 {[%clk 0:00:38]}  f5+ {[%clk 0:00:07]} 59. Kf4 {[%clk 0:00:38]}  Kf6 {[%clk 0:00:08]} 60. Ne3 {[%clk 0:00:38]}  Kg6 {[%clk 0:00:09]} 61. Nxf5 {[%clk 0:00:38]}  Kh5 {[%clk 0:00:10]} 62. Kg3 {[%clk 0:00:35]}  Kg6 {[%clk 0:00:10]} 63. Kg4 {[%clk 0:00:36]}  Kf6 {[%clk 0:00:10]} 64. h5 {[%clk 0:00:37]}  Kf7 {[%clk 0:00:10]} 65. Kg5 {[%clk 0:00:37]}  Kg8 {[%clk 0:00:11]} 66. Kg6 {[%clk 0:00:38]}  Kh8 {[%clk 0:00:11]} 67. Ne3 {[%clk 0:00:36]}  Kg8 {[%clk 0:00:12]} 68. Ng4 {[%clk 0:00:36]}  Kh8 {[%clk 0:00:12]} 69. Ne5 {[%clk 0:00:36]}  Kg8 {[%clk 0:00:13]} 70. Nf7 {[%clk 0:00:36]}  Kf8 {[%clk 0:00:13]} 71. h6 {[%clk 0:00:36]}  Kg8 {[%clk 0:00:14]} 72. h7+ {[%clk 0:00:37]}  Kf8 {[%clk 0:00:15]} 73. h8=Q+ {[%clk 0:00:37]}  Ke7 {[%clk 0:00:16]} 74. Qe5+ {[%clk 0:00:35]}  Kf8 {[%clk 0:00:17]} 75. Qd6+ {[%clk 0:00:33]}  Ke8 {[%clk 0:00:17]} 76. Qd8# {[%clk 0:00:33]} 1-0


[Site "https://www.chess.com"]

[Event "Titled Tuesday Blitz December 20 Late 2022"]
[White "Flynn, Jacob"]
[Black "White, John S."]
[WhiteFideId "2509393"]
[BlackFideId "2502348"]
[WhiteElo "2053"]
[BlackElo "1969"]
[Result "1-0"]
[Round "02"]
[TimeControl "180+1"]
[Date "2022.12.21"]
[WhiteClock "0:00:44"]
[BlackClock "0:00:30"]

1. e4 {[%clk 0:03:00]}  c5 {[%clk 0:02:57]} 2. Nf3 {[%clk 0:03:00]}  e6 {[%clk 0:02:56]} 3. d4 {[%clk 0:03:01]}  cxd4 {[%clk 0:02:55]} 4. Nxd4 {[%clk 0:03:01]}  Nc6 {[%clk 0:02:55]} 5. Nc3 {[%clk 0:03:01]}  d6 {[%clk 0:02:53]} 6. Be3 {[%clk 0:02:59]}  Nf6 {[%clk 0:02:50]} 7. f3 {[%clk 0:02:58]}  Be7 {[%clk 0:02:48]} 8. Qd2 {[%clk 0:02:58]}  a6 {[%clk 0:02:46]} 9. O-O-O {[%clk 0:02:57]}  Nxd4 {[%clk 0:02:45]} 10. Bxd4 {[%clk 0:02:57]}  b5 {[%clk 0:02:42]} 11. g4 {[%clk 0:02:57]}  Bb7 {[%clk 0:02:40]} 12. h4 {[%clk 0:02:51]}  b4 {[%clk 0:02:33]} 13. Ne2 {[%clk 0:02:47]}  O-O {[%clk 0:02:29]} 14. h5 {[%clk 0:02:43]}  Qa5 {[%clk 0:02:26]} 15. Kb1 {[%clk 0:02:43]}  d5 {[%clk 0:02:20]} 16. h6 {[%clk 0:02:34]}  g6 {[%clk 0:02:10]} 17. Qf4 {[%clk 0:02:30]}  Nd7 {[%clk 0:02:00]} 18. Ng3 {[%clk 0:02:20]}  dxe4 {[%clk 0:01:54]} 19. Nxe4 {[%clk 0:02:15]}  Bxe4 {[%clk 0:01:53]} 20. fxe4 {[%clk 0:02:09]}  e5 {[%clk 0:01:47]} 21. Qf2 {[%clk 0:01:45]}  exd4 {[%clk 0:01:45]} 22. Qxd4 {[%clk 0:01:45]}  Ne5 {[%clk 0:01:32]} 23. Bc4 {[%clk 0:01:37]}  Rfd8 {[%clk 0:01:28]} 24. Bd5 {[%clk 0:01:37]}  Bf6 {[%clk 0:01:18]} 25. g5 {[%clk 0:01:35]}  Bh8 {[%clk 0:01:15]} 26. Rhf1 {[%clk 0:01:17]}  Rac8 {[%clk 0:01:08]} 27. Qf2 {[%clk 0:01:03]}  Qc5 {[%clk 0:00:45]} 28. Bxf7+ {[%clk 0:00:58]}  Kf8 {[%clk 0:00:32]} 29. Rxd8+ {[%clk 0:00:45]}  Rxd8 {[%clk 0:00:30]} 30. Qxc5+ {[%clk 0:00:44]} 1-0


[Site "https://www.chess.com"]